bitfinex/quotes_ETHUSD_20241215
["timestamp","ask_amount","ask_price","bid_price","bid_amount"]
[1734249865210,1.0107171,3839.0,3838.0,3.74262538]
[1734249865584,0.03433,3838.9,3838.1,2.60541]
[1734249866380,0.03433,3838.9,3838.2,2.60538]
[1734249866597,0.03433,3838.9,3838.3,2.60527]
[1734249866921,0.8241,3839.0,3838.4,2.60523]
[1734249867432,0.8241,3839.0,3838.2,0.8248]
[1734249867720,0.03433,3838.9,3838.0,1.13712538]
[1734249868129,0.55,3838.7,3837.6,2.13712538]
[1734249868468,0.55,3838.5,3837.6,2.13712538]
[1734249868662,0.7949,3838.6,3837.6,4.74290538]
[1734249868862,0.03454203,3838.4,3837.6,4.74290538]
[1734249869063,0.7949,3838.6,3837.6,4.74290538]
[1734249869226,1.134886,3838.6,3837.6,4.74290538]
[1734249869627,0.03456506,3838.5,3837.7,2.60571]
[1734249870068,1.134886,3838.6,3837.7,2.60571]
[1734249870640,0.7949,3838.6,3837.7,2.60571]
[1734249870840,0.0344345,3838.5,3837.7,2.60571]
[1734249871569,0.0344345,3838.5,3837.6,2.13712538]
[1734249871968,0.0344345,3838.5,3837.6,4.74290538]
[1734249872451,0.0344345,3838.5,3837.7,2.60571]
[1734249872658,0.0344345,3838.5,3837.6,2.13712538]
[1734249872963,0.0344345,3838.5,3837.7,0.77428354]
[1734249873182,0.0344345,3838.5,3837.4,5.6059]
[1734249873183,0.7547,3839.0,3838.1,0.8319]
[1734249873333,0.03439537,3838.4,3838.1,0.8319]
[1734249873528,0.7547,3839.0,3838.1,0.8319]
[1734249873728,0.0345105,3838.9,3838.1,0.8319]
[1734249873962,0.0345105,3838.9,3838.1,1.12880254]
[1734249874165,0.0345105,3838.9,3838.4,2.60523]
[1734249875458,0.7547,3839.0,3838.4,2.60523]
[1734249875659,0.7547,3839.0,3838.5,2.60516]
[1734249875833,0.7547,3839.6,3838.4,2.13712538]
[1734249876027,0.03461777,3838.9,3838.4,2.13712538]
[1734249876333,1.090599,3839.6,3838.4,2.13712538]
[1734249876530,0.03475589,3839.5,3838.4,4.74236538]
[1734249877230,0.7547,3839.4,3838.4,4.74236538]
[1734249877571,0.78943287,3839.4,3838.4,4.74236538]
[1734249879084,2.60487,3839.0,3838.0,2.13712538]
[1734249879285,0.7547,3838.9,3838.0,2.13712538]
[1734249879470,0.7895357,3838.9,3838.0,2.13712538]
[1734249880197,2.60499,3838.8,3838.0,2.13712538]
[1734249880496,0.7547,3838.7,3838.0,2.13712538]
[1734249880692,0.33945027,3838.6,3838.0,2.13712538]
[1734249880999,0.7547,3838.7,3838.0,2.13712538]
[1734249881297,0.7547,3838.4,3837.6,4.74291538]
[1734249882000,0.03469753,3838.3,3837.6,4.74291538]
[1734249882662,0.03469753,3838.3,3837.6,2.13712538]
[1734249882862,0.03469753,3838.3,3837.7,2.6057]
[1734249883100,0.03469753,3838.3,3838.0,2.13712538]
[1734249883599,0.7547,3838.4,3838.0,2.13712538]
[1734249883776,0.0344099,3838.2,3838.0,2.13712538]
[1734249884099,0.7547,3839.0,3838.0,2.13712538]
[1734249884279,0.335949,3838.9,3838.0,2.13712538]
[1734249884476,0.0345711,3838.9,3838.4,2.13712538]
[1734249888008,0.0345711,3838.9,3838.4,4.74234538]
[1734249888213,0.7547,3839.0,3838.4,4.74234538]
[1734249889000,0.03498526,3838.9,3838.8,4.74209538]
[1734249889319,0.7633,3840.7,3839.7,2.60433]
[1734249889483,0.7633,3840.7,3839.9,2.13712538]
[1734249890174,0.03065317,3840.6,3840.3,2.13712538]
[1734249890372,0.7633,3841.0,3840.3,2.13712538]
[1734249890677,0.40781222,3841.3,3840.3,4.74107538]
[1734249890678,0.03063016,3840.5,3840.3,4.74107538]
[1734249890889,1.17111222,3841.3,3840.3,4.74107538]
[1734249890890,1.17111222,3841.3,3840.4,2.60388]
[1734249891284,0.03079117,3841.2,3840.4,2.60388]
[1734249891688,0.03079117,3841.2,3840.5,2.60382]
[1734249891891,0.03079117,3841.2,3841.1,2.13712538]
[1734249892111,0.40781222,3841.3,3841.1,2.13712538]
[1734249893326,0.40781222,3841.3,3840.8,2.13712538]
[1734249893682,0.03168477,3841.2,3840.8,2.13712538]
[1734249893887,0.7851,3842.0,3840.8,2.13712538]
[1734249894299,0.03184571,3841.9,3840.8,2.13712538]
[1734249894906,0.03184571,3841.9,3840.8,4.74073538]
[1734249895107,0.03184571,3841.9,3840.8,2.13712538]
[1734249895348,0.03184571,3841.9,3840.8,2.70607337]
[1734249895639,0.03184571,3841.9,3840.8,5.30968337]
[1734249895955,0.03184571,3841.9,3841.2,2.13712538]
[1734249896177,0.03184571,3841.9,3841.6,2.13712538]
[1734249896728,0.7851,3842.5,3841.6,2.13712538]
[1734249896930,1.123838,3842.5,3841.6,2.13712538]
[1734249897179,0.033467,3842.4,3841.6,2.13712538]
[1734249900977,0.033467,3842.4,3841.6,4.74018538]
[1734249901146,0.7851,3842.5,3841.6,2.13712538]
[1734249901484,0.03367434,3842.3,3841.6,2.13712538]
[1734249901702,0.03369732,3842.4,3841.7,0.47402454]
[1734249901858,0.03365135,3842.2,3841.7,0.47402454]
[1734249902058,0.7851,3842.5,3841.7,0.47402454]
[1734249902518,0.03369732,3842.4,3841.6,2.13712538]
[1734249902820,0.03367434,3842.3,3841.6,2.13712538]
[1734249903031,0.7851,3842.5,3841.6,2.13712538]
[1734249903315,0.03365135,3842.2,3841.6,2.13712538]
[1734249903503,0.7851,3842.5,3841.7,0.21371254]
[1734249903702,0.03362837,3842.1,3841.7,0.21371254]
[1734249903883,0.7851,3842.5,3841.7,0.21371254]
[1734249904066,0.03360538,3842.0,3841.7,0.21371254]
[1734249904272,2.60278,3842.1,3841.2,2.13712538]
[1734249904474,0.51830489,3843.3,3840.8,0.56894799]
[1734249904475,2.60301,3841.8,3840.8,2.70607337]
[1734249904680,2.60301,3841.8,3840.8,2.13712538]
[1734249904892,0.03452751,3841.7,3840.8,2.13712538]
[1734249905305,2.63754751,3841.7,3840.8,2.13712538]
[1734249905466,0.7851,3841.4,3840.8,2.13712538]
[1734249905661,0.7851,3841.4,3840.8,0.21371254]
[1734249905866,0.03424288,3841.3,3840.4,5.13712538]
[1734249906111,0.7851,3841.4,3840.4,5.13712538]
[1734249906469,0.03424288,3841.3,3840.4,5.13712538]
[1734249906777,0.7851,3841.4,3840.4,5.13712538]
[1734249906974,0.03421988,3841.2,3840.4,5.13712538]
[1734249907180,0.7851,3841.4,3840.5,3.85237154]
[1734249907376,0.03419688,3841.1,3840.5,3.85237154]
[1734249907590,0.7851,3841.4,3840.8,2.13712538]
[1734249907800,0.03417388,3841.0,3840.8,2.13712538]
[1734249907964,0.7851,3841.4,3840.8,2.13712538]
[1734249908171,0.03424288,3841.3,3840.9,0.77407654]
[1734249908366,0.03424288,3841.3,3840.5,3.0]
[1734249908607,0.03424288,3841.3,3840.4,5.13712538]
[1734249909305,0.03424288,3841.3,3840.0,2.13712538]
[1734249909306,2.60344,3841.1,3840.0,2.13712538]
[1734249909706,0.03384715,3841.0,3840.0,2.13712538]
[1734249909910,0.03384715,3841.0,3840.8,2.13712538]
[1734249910204,0.8043,3842.1,3841.4,2.60321]
[1734249910426,2.60227,3842.8,3841.3,2.13712538]
[1734249910703,0.03271941,3842.0,3841.3,4.74034538]
[1734249910908,2.60234,3842.7,3841.4,2.60319]
[1734249911207,2.60234,3842.7,3841.5,0.47403154]
[1734249911369,0.03226585,3842.6,3841.5,0.47403154]
[1734249912604,0.03226585,3842.6,3840.2,0.7577]
[1734249912605,0.8034,3841.3,3840.2,0.7577]
[1734249913025,0.03204575,3841.2,3840.2,0.7577]
[1734249913224,0.8034,3841.3,3840.2,0.7577]
[1734249913535,0.03202275,3841.1,3840.2,0.7577]
[1734249913716,0.03204575,3841.2,3840.3,0.39119815]
[1734249914036,0.03202275,3841.1,3840.2,0.7577]
[1734249914449,0.8034,3841.3,3840.2,0.7577]
[1734249914738,0.03144279,3841.0,3840.2,0.7577]
[1734249914908,0.03148878,3841.2,3840.2,0.7577]
[1734249915113,0.03141979,3840.9,3840.2,3.7577]
[1734249915331,0.03146579,3841.1,3840.3,0.69119415]
[1734249915530,0.03139679,3840.8,3840.3,0.69119415]
[1734249915718,0.8034,3841.3,3840.5,2.60377]
[1734249915910,0.8034,3841.3,3840.3,0.69119415]
[1734249915911,0.03137379,3840.7,3840.6,2.60372]
[1734249916123,0.03137379,3840.7,3840.3,0.69119415]
[1734249916307,0.8034,3841.3,3840.4,0.71361811]
[1734249916707,0.03148878,3841.2,3840.4,0.71361811]
[1734249917327,0.03148878,3841.2,3840.2,5.89482538]
[1734249917821,0.8034,3841.3,3840.2,2.13712538]
[1734249918213,0.03148878,3841.2,3840.4,2.60384]
[1734249918546,0.03148878,3841.2,3840.5,2.60382]
[1734249920229,0.8034,3841.3,3840.6,2.60375]
[1734249920430,0.03096224,3841.1,3840.6,2.60375]
[1734249920658,0.8034,3841.3,3840.6,2.60375]
[1734249920827,0.03093924,3841.0,3840.6,2.60375]
[1734249921026,0.8034,3841.3,3840.6,2.60375]
[1734249921240,0.03091624,3840.9,3840.6,2.60375]
[1734249921562,0.8034,3841.3,3840.6,2.60375]
[1734249921765,0.8034,3842.3,3840.6,2.52618485]
[1734249921967,0.8034,3842.3,3841.1,2.6034]
[1734249921968,0.03098524,3841.2,3841.1,2.6034]
[1734249922267,0.8034,3842.3,3841.1,2.6034]
[1734249922559,2.60216,3843.0,3841.1,2.6034]
[1734249922560,0.03122633,3841.2,3841.1,2.6034]
[1734249922724,0.8034,3841.6,3841.2,2.60334]
[1734249923347,0.8034,3842.7,3841.4,2.13712538]
[1734249923577,0.8034,3842.7,3841.8,2.13712538]
[1734249923885,0.8034,3842.7,3841.9,2.60284]
[1734249924087,0.03189209,3842.6,3841.9,2.60284]
[1734249924383,0.8034,3842.7,3841.9,2.60284]
[1734249924890,0.03189209,3842.6,3841.8,2.13712538]
[1734249925075,0.8034,3842.7,3842.2,2.13712538]
[1734249925881,2.60173,3843.6,3842.2,2.13712538]
[1734249925882,0.8034,3843.5,3842.2,2.13712538]
[1734249926088,0.03146828,3842.6,3842.2,2.13712538]
[1734249926263,0.8034,3843.5,3842.8,2.60225]
[1734249927788,0.8109,3845.0,3843.3,2.13712538]
[1734249927993,0.8109,3844.6,3843.3,2.13712538]
[1734249928807,0.8109,3844.6,3843.3,4.73904538]
[1734249929105,0.8109,3844.6,3843.3,2.13712538]
[1734249929410,0.8109,3844.6,3843.7,2.60163]
[1734249929596,0.8109,3844.6,3843.7,2.13712538]
[1734249929797,0.8109,3844.6,3844.0,2.60144]
[1734249929994,0.8109,3844.6,3844.5,2.13712538]
[1734249930202,0.8109,3844.6,3843.2,5.60197]
[1734249930203,0.8109,3844.6,3844.1,2.13712538]
[1734249930405,0.84445785,3844.6,3844.1,2.13712538]
[1734249931107,0.8109,3844.6,3844.1,2.13712538]
[1734249931293,0.03378113,3844.5,3844.1,2.13712538]
[1734249932097,0.03378113,3844.5,3844.1,4.73846538]
[1734249932523,0.8109,3844.6,3844.1,4.73846538]
[1734249932757,0.8109,3844.6,3844.5,2.13712538]
[1734249933600,0.8277,3844.9,3844.5,2.13712538]
[1734249933831,0.0340611,3844.6,3844.5,2.13712538]
[1734249934034,0.53311901,3845.6,3844.5,4.27425076]
[1734249934035,0.8277,3845.5,3844.5,4.27425076]
[1734249934235,0.1360819,3845.4,3845.3,2.13712538]
[1734249934387,0.17011327,3845.4,3845.3,2.13712538]
[1734249935236,0.1360819,3845.4,3845.3,2.13712538]
[1734249935726,0.17094801,3845.4,3845.3,2.13712538]
[1734249936196,0.03486611,3845.4,3845.3,2.13712538]
[1734249936395,0.8277,3845.9,3845.3,2.13712538]
[1734249936596,0.8277,3846.2,3845.8,2.13712538]
[1734249937027,0.8277,3846.1,3843.4,1.07445194]
[1734249937192,0.8277,3845.7,3843.5,1.07511299]
[1734249937532,0.8277,3845.7,3843.5,0.8065]
[1734249937533,2.60106,3844.6,3843.5,0.8065]
[1734249937685,0.8277,3844.5,3843.5,0.8065]
[1734249938127,0.82456579,3844.5,3843.5,0.8065]
[1734249941303,2.60079,3845.0,3843.5,0.8065]
[1734249941304,2.60083,3845.0,3843.5,0.8065]
[1734249941645,2.60083,3845.0,3843.7,5.66540459]
[1734249941840,0.337083,3844.9,3843.7,5.66540459]
[1734249943207,2.60094,3844.8,3843.7,5.66540459]
[1734249943420,2.60099,3844.7,3843.7,5.66540459]
[1734249944745,0.77,3844.5,3842.0,0.7987]
[1734249945040,3.0,3844.6,3842.0,0.7987]
[1734249945041,0.77,3843.5,3842.0,0.7987]
[1734249945342,2.60194,3843.3,3842.1,0.37535871]
[1734249945644,0.03239048,3843.2,3842.1,0.37535871]
[1734249946041,0.03239048,3843.2,3842.1,3.37535871]
[1734249946247,0.77,3843.5,3842.3,3.0]
[1734249946410,0.0322926,3843.1,3842.3,3.0]
[1734249946743,0.77,3843.5,3842.3,3.67767087]
[1734249946966,0.03226963,3843.0,3842.3,6.34307546]
[1734249947126,0.77,3843.5,3842.4,2.6025]
[1734249947451,0.77,3843.5,3842.5,3.0]
[1734249947631,0.03099109,3843.4,3842.5,3.0]
[1734249948907,0.77,3843.5,3842.4,3.0]
[1734249949141,0.03096812,3843.3,3842.4,3.0]
[1734249949342,0.36816509,3843.4,3842.4,3.0]
[1734249949540,0.03094514,3843.2,3842.4,3.0]
[1734249949737,0.03096812,3843.3,3842.4,3.0]
[1734249949943,0.03096501,3843.1,3842.4,3.0]
[1734249950119,0.03111125,3843.2,3842.4,3.0]
[1734249950319,0.0310653,3843.0,3842.4,3.0]
[1734249950567,0.03102937,3843.1,3842.4,3.0]
[1734249950870,0.03098342,3842.9,3842.4,3.0]
[1734249951008,0.0310064,3843.0,3842.4,3.0]
[1734249951204,0.8037,3843.9,3842.7,5.66540459]
[1734249951403,0.8037,3843.9,3842.7,5.26771459]
[1734249951609,0.03119552,3843.8,3842.8,3.0]
[1734249952008,0.7565,3843.7,3842.0,0.7847]
[1734249952239,0.7565,3843.7,3842.0,3.7847]
[1734249952448,0.7565,3844.3,3842.0,3.7847]
[1734249952639,0.7565,3842.9,3842.0,3.7847]
[1734249952830,1.092364,3842.9,3842.0,0.7847]
[1734249953031,0.03106217,3842.8,3842.0,0.7847]
[1734249953250,2.60235,3842.7,3841.6,0.7847]
[1734249953557,2.6333892,3842.7,3841.6,0.7847]
[1734249953915,0.0310392,3842.7,3841.6,0.7847]
[1734249954360,0.37001112,3842.7,3841.6,3.7847]
[1734249955489,0.37001112,3842.7,3841.6,6.38776]
[1734249955767,0.0310392,3842.7,3842.0,3.0]
[1734249955934,0.0310392,3842.7,3841.6,3.7847]
[1734249956144,0.7565,3842.9,3841.8,3.0]
[1734249956449,0.03052664,3842.8,3841.8,3.0]
[1734249957072,0.03052664,3842.8,3841.9,2.60287]
[1734249957245,0.03052664,3842.8,3842.0,3.0]
[1734249959485,0.03052664,3842.8,3841.6,6.38775]
[1734249959775,0.03052664,3842.8,3841.8,3.0]
[1734249959947,0.03052664,3842.8,3841.6,4.742704]
[1734249960159,0.03052664,3842.8,3841.9,3.0]
[1734249960829,2.60239,3842.7,3841.6,1.742704]
[1734249961055,2.60239,3842.7,3841.6,0.7847]
[1734249961242,0.03056648,3842.6,3841.6,0.7847]
[1734249962074,2.63297648,3842.6,3841.6,0.7847]
[1734249962231,0.8312,3842.5,3840.9,2.91517635]
[1734249962437,0.8312,3842.4,3840.9,0.7758]
[1734249962778,0.8312,3841.8,3840.5,2.91517635]
[1734249962942,3.43416,3841.8,3840.5,5.51897635]
[1734249963337,0.02963112,3841.7,3840.5,5.51897635]
[1734249964069,0.02963112,3841.7,3840.6,3.0]
[1734249964256,0.8312,3841.8,3840.9,2.13937635]
[1734249964661,0.8312,3841.8,3841.1,2.6034]
[1734249964872,0.02863995,3841.7,3841.2,3.0]
[1734249965081,0.8312,3841.8,3841.2,3.0]
[1734249965235,0.02861695,3841.6,3841.2,2.60334]
[1734249965437,0.8312,3841.8,3841.2,2.60334]
[1734249965634,0.02859396,3841.5,3841.2,2.60334]
[1734249965850,0.8312,3841.8,3841.2,2.60334]
[1734249966050,0.02868887,3841.4,3841.2,2.60334]
[1734249966262,0.8312,3841.8,3841.2,2.60334]
[1734249966434,0.02866587,3841.3,3841.2,5.60334]
[1734249966651,0.8312,3841.8,3841.2,2.60334]
[1734249966873,0.02866587,3841.3,3841.2,5.60334]
[1734249967190,0.7647,3842.2,3841.3,5.60322]
[1734249967499,0.02908561,3842.1,3841.3,5.60322]
[1734249967649,0.02908561,3842.1,3841.2,1.57087164]
[1734249967957,0.02908561,3842.1,3841.7,2.13937635]
[1734249968357,0.7647,3842.9,3841.7,5.13937635]
[1734249968584,0.7647,3842.9,3842.1,2.60273]
[1734249968784,0.02936975,3842.8,3842.1,2.60273]
[1734249968988,0.7647,3842.9,3842.1,2.60273]
[1734249969147,0.7647,3842.9,3841.7,5.91362299]
[1734249969356,0.7647,3842.9,3842.2,2.60261]
[1734249969688,0.02986261,3842.8,3842.0,2.60278]
[1734249969872,0.02986261,3842.8,3841.8,3.7686]
[1734249970184,0.7647,3842.9,3841.8,3.7686]
[1734249970185,0.7647,3842.9,3842.3,2.6026]
[1734249970553,0.02986261,3842.8,3842.0,2.60274]
[1734249970756,0.02986261,3842.8,3842.1,2.60273]
[1734249971090,0.02986261,3842.8,3842.2,2.60263]
[1734249971275,0.02986261,3842.8,3842.5,2.60245]
[1734249971474,0.8077,3843.4,3842.6,2.60238]
[1734249971785,0.02983963,3842.7,3842.6,2.60238]
[1734249971960,0.8077,3843.4,3842.6,2.60238]
[1734249972286,0.02997748,3843.3,3842.5,2.13937635]
[1734249972490,0.8077,3843.4,3842.6,4.31293764]
[1734249972851,0.8077,3843.4,3843.0,2.60212]
[1734249973587,0.8032,3844.2,3843.1,2.60205]
[1734249973796,0.8032,3844.2,3842.9,2.13937635]
[1734249973797,0.8032,3844.2,3843.2,2.60197]
[1734249973963,0.8032,3844.2,3842.9,2.13937635]
[1734249973964,0.03110398,3844.1,3842.9,2.13937635]
[1734249974170,0.03110398,3844.1,3843.3,2.60191]
[1734249974480,0.8032,3844.2,3843.3,2.60191]
[1734249974481,0.03108637,3844.0,3843.3,2.60191]
[1734249974679,0.8032,3844.2,3843.3,2.39956735]
[1734249974850,0.8032,3844.2,3843.6,2.60172]
[1734249975195,0.8032,3844.2,3843.3,2.93837635]
[1734249975493,0.8032,3844.2,3843.1,2.60204]
[1734249975654,0.8032,3844.0,3843.2,3.0]
[1734249977602,0.8032,3844.0,3843.2,5.60197]
[1734249978057,0.03160294,3843.9,3843.2,5.60197]
[1734249978392,0.03160294,3843.9,3842.8,5.13937635]
[1734249978573,0.34362029,3843.8,3842.8,5.13937635]
[1734249978894,0.03155701,3843.7,3843.0,3.0]
[1734249979059,0.8032,3844.0,3842.8,5.13937635]
[1734249979255,0.8032,3844.0,3843.1,3.0]
[1734249979480,2.60161,3843.8,3842.7,3.0]
[1734249979688,0.03155701,3843.7,3842.7,5.60231]
[1734249979869,0.03155701,3843.7,3842.8,2.60225]
[1734249980075,0.8032,3843.9,3842.8,2.13937635]
[1734249980274,0.03153405,3843.6,3842.8,2.13937635]
[1734249980474,0.8032,3843.9,3842.8,2.13937635]
[1734249980669,0.03131838,3843.5,3842.8,2.13937635]
[1734249980869,0.8032,3843.9,3842.9,3.5913545]
[1734249981083,0.03138728,3843.8,3842.9,3.5913545]
[1734249981283,0.8032,3843.9,3843.5,2.60177]
[1734249982273,0.8032,3845.0,3843.2,2.13937635]
[1734249982597,0.8032,3845.0,3843.7,2.13937635]
[1734249982598,0.03171476,3844.9,3843.7,2.13937635]
[1734249982793,0.03171476,3844.9,3844.4,2.60118]
[1734249982999,0.8032,3845.0,3844.1,2.13937635]
[1734249983295,0.8032,3845.0,3844.4,2.60114]
[1734249983511,0.8032,3845.0,3844.5,2.6011]
[1734249983656,0.0320788,3844.9,3844.5,4.74047635]
[1734249983863,0.8032,3845.0,3844.5,2.13937635]
[1734249984093,0.03236246,3844.9,3844.5,2.13937635]
[1734249984266,0.8032,3845.0,3844.5,2.13937635]
[1734249984468,0.03236246,3844.9,3844.5,2.13937635]
[1734249984875,0.8032,3845.4,3844.5,2.35331399]
[1734249985093,0.03245426,3845.3,3844.5,2.35331399]
[1734249986496,0.03245426,3845.3,3844.5,2.13937635]
[1734249986965,0.03245426,3845.3,3844.1,2.13937635]
[1734249987164,2.60105,3844.6,3844.1,2.13937635]
[1734249987407,2.60121,3844.4,3843.3,2.13937635]
[1734249987717,0.83570176,3844.3,3843.3,2.13937635]
[1734249987922,0.83570176,3844.3,3843.3,2.48405567]
[1734249988265,3.43696176,3844.3,3843.3,2.48405567]
[1734249988463,2.60146,3844.0,3843.3,2.13937635]
[1734249988685,0.83770991,3843.9,3843.3,2.13937635]
[1734249991199,0.03240991,3843.9,3843.8,5.60159]
[1734249991405,0.03240991,3843.9,3843.8,3.0]
[1734249991574,0.7673,3844.9,3843.8,3.0]
[1734249991780,0.7673,3844.9,3844.3,2.13937635]
[1734249992918,0.02979445,3844.8,3844.3,2.13937635]
[1734249993922,0.02979445,3844.8,3844.7,2.13937635]
[1734249994218,0.8218,3845.3,3844.7,2.13937635]
[1734249994618,0.03030679,3845.2,3844.7,2.13937635]
[1734249994825,0.8218,3845.3,3844.7,2.13937635]
[1734249995180,0.03032162,3845.2,3844.7,2.13937635]
[1734249996223,0.34731018,3845.2,3844.3,5.13937635]
[1734249996386,0.34731018,3845.2,3843.9,0.77409864]
[1734249996387,2.60094,3844.8,3844.0,3.0]
[1734249996587,0.8218,3844.7,3843.9,2.13937635]
[1734249996783,0.85200686,3844.7,3843.9,2.13937635]
[1734249997028,0.85200686,3844.7,3844.0,3.0]
[1734249997222,0.8218,3844.7,3844.0,3.0]
[1734249997724,0.8218,3844.7,3842.5,1.99959288]
[1734249997725,2.60126,3844.3,3843.5,2.13937635]
[1734249997925,2.60146,3844.0,3843.1,2.13937635]
[1734249998226,0.03002319,3843.9,3843.1,2.13937635]
[1734249998988,0.03002319,3843.9,3843.1,2.35331399]
[1734249999923,2.60146,3844.0,3843.1,2.35331399]
[1734250000850,0.7569,3844.3,3843.1,2.13937635]
[1734250001051,0.7569,3843.6,3843.1,2.13937635]
[1734250001260,0.7569,3843.6,3842.8,2.66610509]
[1734250001416,0.02993132,3843.5,3842.9,3.0]
[1734250001759,0.02990835,3843.4,3842.9,3.0]
[1734250002255,0.7569,3843.6,3842.9,3.0]
[1734250002538,0.02932881,3843.3,3842.9,3.0]
[1734250002835,0.7569,3843.6,3842.9,3.0]
[1734250003055,0.02930584,3843.2,3842.9,3.0]
[1734250003343,0.7569,3843.6,3842.9,3.0]
[1734250003547,0.02920426,3843.5,3842.9,3.0]
[1734250004497,0.02825941,3843.4,3841.9,0.7697]
[1734250004698,2.60229,3842.8,3841.9,0.7697]
[1734250004906,0.02809864,3842.7,3841.9,0.7697]
[1734250005142,2.60227,3842.8,3841.9,0.7697]
[1734250005307,0.02809864,3842.7,3841.9,0.7697]
[1734250005524,0.02809864,3842.7,3841.9,1.11328051]
[1734250005835,0.7569,3842.9,3842.1,2.66610509]
[1734250006035,0.02771142,3842.6,3842.1,2.66610509]
[1734250006222,0.7569,3842.9,3842.1,2.66610509]
[1734250006423,0.7569,3842.9,3841.9,1.11328051]
[1734250006836,0.02739849,3842.8,3841.9,1.11328051]
[1734250007469,0.02739849,3842.8,3841.7,5.66610509]
[1734250007767,2.62967849,3842.8,3841.7,5.66610509]
[1734250008420,0.02739849,3842.8,3841.7,5.66610509]
[1734250010703,0.02739849,3842.8,3841.7,8.26911509]
[1734250012728,0.02739849,3842.8,3842.2,2.60266]
[1734250012906,0.7569,3842.9,3842.3,0.52687651]
[1734250013101,0.02614687,3842.8,3842.3,0.52687651]
[1734250013503,0.7857,3843.2,3842.5,3.0]
[1734250013700,0.0262158,3843.1,3842.5,2.60245]
[1734250013924,0.7857,3843.2,3842.7,3.0]
[1734250014124,0.7857,3843.2,3842.3,0.52687651]
[1734250014125,0.7857,3843.2,3842.5,3.0]
[1734250014565,0.02552646,3843.1,3842.2,0.7675]
[1734250014839,0.02552646,3843.1,3842.1,2.60269]
[1734250015140,0.7857,3843.2,3841.9,3.0]
[1734250015141,0.02563218,3843.0,3842.3,3.0]
[1734250015355,0.7857,3843.2,3842.3,3.560266]
[1734250015554,0.02565516,3843.1,3842.3,3.560266]
[1734250017405,0.7857,3843.0,3842.3,3.0]
[1734250017649,0.7857,3843.0,3841.6,2.60307]
[1734250017840,2.60139,3844.1,3841.4,3.43360509]
[1734250017841,0.7857,3842.7,3841.4,3.43360509]
[1734250018182,0.025582,3842.6,3841.4,3.43360509]
[1734250018440,0.025582,3842.6,3841.5,0.85630644]
[1734250018647,0.7857,3842.7,3841.8,2.60291]
[1734250018849,0.02555902,3842.5,3841.8,2.60291]
[1734250019035,0.02555902,3842.5,3841.9,3.0]
[1734250019344,0.7857,3842.7,3841.9,3.0]
[1734250019514,0.025582,3842.6,3841.9,3.0]
[1734250019717,0.025582,3842.6,3841.9,0.560291]
[1734250019974,0.7857,3842.7,3841.9,3.0]
[1734250020119,0.7857,3842.7,3842.2,2.60263]
[1734250020452,0.7857,3842.7,3841.9,3.0]
[1734250020646,0.7857,3843.8,3842.5,2.60245]
[1734250020944,0.7857,3843.8,3842.6,2.60239]
[1734250021147,0.36445583,3843.7,3842.6,2.60239]
[1734250022245,0.36445583,3843.7,3842.7,2.60232]
[1734250022566,0.338723,3843.7,3842.7,2.60232]
[1734250022718,0.338723,3843.7,3842.8,3.0]
[1734250023483,0.7857,3843.8,3842.3,2.13835954]
[1734250023765,0.02498742,3843.7,3843.2,2.60196]
[1734250023947,0.7857,3844.3,3843.7,3.0]
[1734250024173,0.7857,3845.0,3843.6,2.13835954]
[1734250024325,0.7857,3845.0,3844.0,2.13835954]
[1734250024526,0.7857,3845.0,3844.4,2.13835954]
[1734250024734,0.7857,3845.0,3844.7,2.60095]
[1734250025139,0.7857,3845.0,3844.4,2.13835954]
[1734250025339,0.7857,3845.0,3844.4,2.91232849]
[1734250025724,0.7857,3845.0,3844.5,3.0]
[1734250026424,0.7857,3845.8,3844.5,3.0]
[1734250026928,0.02392265,3845.7,3844.5,3.0]
[1734250029360,2.60044,3845.5,3844.5,3.0]
[1734250029575,0.02392265,3845.7,3844.5,3.0]
[1734250029870,0.02389971,3845.6,3844.6,0.59123285]
[1734250031508,0.02389971,3845.6,3843.4,1.08109394]
[1734250031784,2.60121,3844.4,3843.2,0.7982]
[1734250032001,2.60121,3844.4,3843.1,2.13835954]
[1734250032002,0.02511835,3844.3,3843.1,2.13835954]
[1734250032144,0.8253,3844.2,3843.1,2.13835954]
[1734250032343,0.02509919,3844.1,3843.1,2.13835954]
[1734250032676,2.62648919,3844.1,3843.2,0.29043595]
[1734250033971,2.60147,3844.0,3843.2,0.29043595]
[1734250034147,0.02705244,3843.9,3843.2,0.29043595]
[1734250035255,2.6017,3843.7,3842.8,3.0]
[1734250035457,2.6018,3843.5,3842.3,2.13835954]
[1734250035768,0.85232594,3843.8,3842.3,2.13835954]
[1734250035946,2.60173,3843.6,3842.3,2.13835954]
[1734250036145,0.02696498,3843.5,3842.4,0.55070895]
[1734250036772,0.02696498,3843.5,3842.4,3.55070895]
[1734250036972,3.4269,3843.8,3842.7,2.13835954]
[1734250037158,2.62857045,3843.7,3842.7,2.13835954]
[1734250037995,2.60173,3843.6,3842.7,2.13835954]
[1734250038179,0.0266866,3843.5,3842.7,2.13835954]
[1734250038480,0.0266866,3843.5,3842.8,3.0]
[1734250038898,0.0266866,3843.5,3842.4,0.55070895]
[1734250038899,2.6021,3843.1,3842.4,0.55070895]
[1734250039104,2.6021,3843.1,3842.3,2.13835954]
[1734250039247,0.02465735,3843.0,3842.3,2.13835954]
[1734250039849,0.03135075,3843.0,3842.3,2.13835954]
[1734250040908,2.6022,3842.9,3842.3,2.13835954]
[1734250041047,0.8253,3842.8,3841.9,2.13835954]
[1734250041249,0.85640001,3842.8,3842.0,0.21383595]
[1734250041670,0.8253,3842.8,3842.0,3.21383595]
[1734250042087,0.03106867,3842.7,3842.0,3.21383595]
[1734250042296,0.8253,3842.8,3842.0,3.21383595]
[1734250042808,0.8253,3843.2,3842.7,2.13835954]
[1734250043510,0.02853412,3843.1,3842.5,5.60246]
[1734250043702,0.02853412,3843.1,3842.4,3.766]
[1734250043984,0.02853412,3843.1,3842.3,2.13835954]
[1734250043985,0.8253,3843.2,3842.3,2.13835954]
[1734250045684,0.8253,3842.7,3842.0,3.0]
[1734250046053,0.8253,3842.7,3841.9,0.53182077]
[1734250046054,2.60244,3842.6,3841.9,0.53182077]